fUSD/lending_fUSD_20260506
["ID","MTS","AMOUNT","RATE_DAILY","PERIOD"]
[421707470,1778049249000,-1096.29,0.00042465,120]
[421707480,1778049249000,-368.17329323,0.00042465,120]
[421707477,1778049249000,-500.0,0.00042465,120]
[421707472,1778049249000,-1096.29,0.00042465,120]
[421707473,1778049249000,-500.0,0.00042465,120]
[421707460,1778049249000,-500.0,0.00042465,120]
[421707478,1778049249000,-1096.29,0.00042465,120]
[421707493,1778049249000,-500.0,0.00042465,120]
[421707487,1778049249000,-201.26253,0.00042465,120]
[421707484,1778049249000,-500.0,0.00042465,120]
[421707491,1778049249000,-500.0,0.00042465,120]
[421707474,1778049249000,-1096.29,0.00042465,120]
[421707492,1778049249000,-500.0,0.00042465,120]
[421707485,1778049249000,-500.0,0.00042465,120]
[421707483,1778049249000,-500.0,0.00042465,120]
[421707481,1778049249000,-211.03,0.00042465,120]
[421707475,1778049249000,-500.0,0.00042465,120]
[421707476,1778049249000,-1096.29,0.00042465,120]
[421707479,1778049249000,-1096.52553585,0.00042465,120]
[421707482,1778049249000,-500.0,0.00042465,120]
[421707563,1778049250000,-833.68,0.00042465,120]
[421707558,1778049250000,-500.0,0.00042465,120]
[421707561,1778049250000,-833.68,0.00042465,120]
[421707559,1778049250000,-500.0,0.00042465,120]
[421707564,1778049250000,-833.68,0.00042465,120]
[421707557,1778049250000,-500.0,0.00042465,120]
[421707555,1778049250000,-8333.41,0.00042465,120]
[421707556,1778049250000,-368.72700318,0.00042465,120]
[421707553,1778049250000,-8333.33,0.00042465,120]
[421707554,1778049250000,-8333.33,0.00042465,120]
[421707562,1778049250000,-833.68,0.00042465,120]
[421707560,1778049250000,-508.40425453,0.00042465,120]
[421707572,1778049250000,-833.68,0.00042465,120]
[421707575,1778049250000,-833.68,0.00042465,120]
[421707565,1778049250000,-833.68,0.00042465,120]
[421707567,1778049250000,-833.68,0.00042465,120]
[421707574,1778049250000,-833.68,0.00042465,120]
[421707571,1778049250000,-833.68,0.00042465,120]
[421707569,1778049250000,-833.68,0.00042465,120]
[421707568,1778049250000,-833.68,0.00042465,120]
[421707570,1778049250000,-833.68,0.00042465,120]
[421707573,1778049250000,-833.68,0.00042465,120]
[421707579,1778049250000,-406.77364039,0.00042465,120]
[421707582,1778049250000,-833.68,0.00042465,120]
[421707551,1778049250000,-8333.33,0.00042465,120]
[421707566,1778049250000,-833.68,0.00042465,120]
[421707583,1778049250000,-833.68,0.00042465,120]
[421707537,1778049250000,-500.0,0.00042465,120]
[421707552,1778049250000,-8333.33,0.00042465,120]
[421707530,1778049250000,-8333.33,0.00042465,120]
[421707524,1778049250000,-500.0,0.00042465,120]
[421707523,1778049250000,-500.0,0.00042465,120]
[421707525,1778049250000,-500.0,0.00042465,120]
[421707526,1778049250000,-500.0,0.00042465,120]
[421707527,1778049250000,-500.0,0.00042465,120]
[421707529,1778049250000,-8333.33,0.00042465,120]
[421707528,1778049250000,-278.67231121,0.00042465,120]
[421707532,1778049250000,-8333.33,0.00042465,120]
[421707531,1778049250000,-8333.33,0.00042465,120]
[421707540,1778049250000,-8333.33,0.00042465,120]
[421707533,1778049250000,-8333.33,0.00042465,120]
[421707550,1778049250000,-8333.33,0.00042465,120]
[421707534,1778049250000,-8333.33,0.00042465,120]
[421707541,1778049250000,-8333.33,0.00042465,120]
[421707538,1778049250000,-8333.33,0.00042465,120]
[421707536,1778049250000,-8333.33,0.00042465,120]
[421707539,1778049250000,-500.0,0.00042465,120]
[421707542,1778049250000,-561.97017282,0.00042465,120]
[421707544,1778049250000,-8333.33,0.00042465,120]
[421707545,1778049250000,-8333.33,0.00042465,120]
[421707543,1778049250000,-8333.33,0.00042465,120]
[421707546,1778049250000,-8333.33,0.00042465,120]
[421707547,1778049250000,-8333.33,0.00042465,120]
[421707548,1778049250000,-8333.33,0.00042465,120]
[421707549,1778049250000,-8333.33,0.00042465,120]
[421707535,1778049250000,-8333.33,0.00042465,120]
[421707581,1778049250000,-833.68,0.00042465,120]
[421707606,1778049250000,-151.0,0.00042465,120]
[421707576,1778049250000,-833.68,0.00042465,120]
[421707623,1778049250000,-500.0,0.00042465,120]
[421707614,1778049250000,-281.783483,0.00042465,120]
[421707612,1778049250000,-338.86642309,0.00042465,120]
[421707616,1778049250000,-281.783483,0.00042465,120]
[421707615,1778049250000,-281.783483,0.00042465,120]
[421707617,1778049250000,-500.0,0.00042465,120]
[421707618,1778049250000,-500.0,0.00042465,120]
[421707619,1778049250000,-500.0,0.00042465,120]
[421707621,1778049250000,-500.0,0.00042465,120]
[421707620,1778049250000,-500.0,0.00042465,120]
[421707622,1778049250000,-500.0,0.00042465,120]
[421707625,1778049250000,-500.0,0.00042465,120]
[421707613,1778049250000,-281.783483,0.00042465,120]
[421707635,1778049250000,-500.0,0.00042465,120]
[421707628,1778049250000,-1920.959522,0.00042465,28]
[421707626,1778049250000,-562.85201256,0.00042465,120]
[421707627,1778049250000,-1920.959522,0.00042465,28]
[421707632,1778049250000,-910.238616,0.00042465,7]
[421707631,1778049250000,-1529.201548,0.00042465,120]
[421707629,1778049250000,-1920.959522,0.00042465,28]
[421707630,1778049250000,-1920.959522,0.00042465,28]
[421707633,1778049250000,-1529.201548,0.00042465,120]
[421707634,1778049250000,-910.238616,0.00042465,7]
[421707637,1778049250000,-500.0,0.00042465,120]
[421707638,1778049250000,-1529.201548,0.00042465,120]
[421707580,1778049250000,-833.68,0.00042465,120]
[421707624,1778049250000,-500.0,0.00042465,120]
[421707610,1778049250000,-10000.0,0.00042465,120]
[421707636,1778049250000,-500.0,0.00042465,120]
[421707608,1778049250000,-10000.0,0.00042465,120]
[421707609,1778049250000,-10000.0,0.00042465,120]
[421707578,1778049250000,-833.68,0.00042465,120]
[421707586,1778049250000,-295.84514075,0.00042465,120]
[421707577,1778049250000,-833.68,0.00042465,120]
[421707587,1778049250000,-500.0,0.00042465,120]
[421707584,1778049250000,-833.68,0.00042465,120]
[421707588,1778049250000,-500.0,0.00042465,120]
[421707590,1778049250000,-500.0,0.00042465,120]
[421707592,1778049250000,-500.0,0.00042465,120]
[421707591,1778049250000,-500.0,0.00042465,120]
[421707594,1778049250000,-500.0,0.00042465,120]
[421707589,1778049250000,-510.75013708,0.00042465,120]
[421707593,1778049250000,-500.0,0.00042465,120]
[421707585,1778049250000,-833.72833417,0.00042465,120]
[421707599,1778049250000,-500.0,0.00042465,120]
[421707598,1778049250000,-500.0,0.00042465,120]
[421707605,1778049250000,-501.75332269,0.00042465,3]
[421707602,1778049250000,-557.97227483,0.00042465,120]
[421707603,1778049250000,-450.27196868,0.00042465,120]
[421707600,1778049250000,-500.0,0.00042465,120]
[421707604,1778049250000,-500.0,0.00042465,3]
[421707601,1778049250000,-500.0,0.00042465,120]
[421707596,1778049250000,-502.09885484,0.00042465,120]
[421707597,1778049250000,-500.0,0.00042465,120]
[421707595,1778049250000,-500.0,0.00042465,120]
[421707611,1778049250000,-10000.0,0.00042465,120]
[421707607,1778049250000,-10000.0,0.00042465,120]
[421707667,1778049251000,-964.36917,0.00042465,120]
[421707668,1778049251000,-500.0,0.00042465,120]
[421707682,1778049251000,-278.48938,0.00042465,120]
[421707665,1778049251000,-964.36917,0.00042465,120]
[421707669,1778049251000,-500.0,0.00042465,120]
[421707670,1778049251000,-500.0,0.00042465,120]
[421707672,1778049251000,-500.0,0.00042465,120]
[421707675,1778049251000,-1419.836767,0.00042465,120]
[421707676,1778049251000,-1419.836767,0.00042465,120]
[421707683,1778049251000,-278.48938,0.00042465,120]
[421707679,1778049251000,-409.41615677,0.00042465,2]
[421707671,1778049251000,-500.0,0.00042465,120]
[421707673,1778049251000,-500.0,0.00042465,120]
[421707677,1778049251000,-1419.836767,0.00042465,120]
[421707678,1778049251000,-1419.836767,0.00042465,120]
[421707680,1778049251000,-278.48938,0.00042465,120]
[421707681,1778049251000,-278.48938,0.00042465,120]
[421707685,1778049251000,-266.0,0.00042466,120]
[421707695,1778049251000,-350.0,0.00042466,2]
[421707687,1778049251000,-150.0,0.00042466,120]
[421707666,1778049251000,-212.91860264,0.00042465,120]
[421707690,1778049251000,-650.0,0.00042466,2]
[421707674,1778049251000,-158.72439486,0.00042465,120]
[421707664,1778049251000,-318.019443,0.00042465,30]
[421707649,1778049251000,-926.44879864,0.00042465,7]
[421707662,1778049251000,-318.019443,0.00042465,30]
[421707686,1778049251000,-183.0,0.00042466,120]
[421707640,1778049251000,-500.0,0.00042465,120]
[421707642,1778049251000,-910.238616,0.00042465,7]
[421707639,1778049251000,-500.0,0.00042465,120]
[421707648,1778049251000,-1000.0,0.00042465,7]
[421707645,1778049251000,-151.0,0.00042465,120]
[421707646,1778049251000,-151.0,0.00042465,120]
[421707641,1778049251000,-211.00705243,0.00042465,120]
[421707647,1778049251000,-1000.0,0.00042465,7]
[421707644,1778049251000,-910.238616,0.00042465,7]
[421707643,1778049251000,-1529.201548,0.00042465,120]
[421707650,1778049251000,-328.357965,0.00042465,120]
[421707657,1778049251000,-607.81341,0.00042465,120]
[421707658,1778049251000,-318.019443,0.00042465,30]
[421707651,1778049251000,-607.81341,0.00042465,120]
[421707652,1778049251000,-328.357965,0.00042465,120]
[421707654,1778049251000,-328.357965,0.00042465,120]
[421707655,1778049251000,-607.81341,0.00042465,120]
[421707656,1778049251000,-328.357965,0.00042465,120]
[421707653,1778049251000,-607.81341,0.00042465,120]
[421707659,1778049251000,-318.019443,0.00042465,30]
[421707661,1778049251000,-151.0,0.00042465,120]
[421707660,1778049251000,-964.36917,0.00042465,120]
[421707663,1778049251000,-964.36917,0.00042465,120]
[421707688,1778049251000,-272.0,0.00042466,120]
[421707684,1778049251000,-150.0,0.00042466,120]
[421707731,1778049251000,-500.0,0.00042512,30]
[421707720,1778049251000,-500.0,0.000425,45]
[421707719,1778049251000,-500.0,0.000425,45]
[421707727,1778049251000,-500.0,0.000425,45]
[421707721,1778049251000,-500.0,0.000425,45]
[421707726,1778049251000,-500.0,0.000425,45]
[421707728,1778049251000,-500.0,0.000425,45]
[421707725,1778049251000,-500.0,0.000425,45]
[421707724,1778049251000,-500.0,0.000425,45]
[421707723,1778049251000,-178.94492219,0.000425,120]
[421707729,1778049251000,-500.0,0.000425,45]
[421707730,1778049251000,-500.0,0.00042511,14]
[421707732,1778049251000,-500.0,0.00042512,30]
[421707736,1778049251000,-500.0,0.00042512,30]
[421707741,1778049251000,-1169.0,0.00042512,90]
[421707734,1778049251000,-500.0,0.00042512,30]
[421707735,1778049251000,-500.0,0.00042512,30]
[421707739,1778049251000,-1169.0,0.00042512,90]
[421707737,1778049251000,-500.0,0.00042512,30]
[421707740,1778049251000,-1169.0,0.00042512,90]
[421707733,1778049251000,-500.0,0.00042512,30]
[421707738,1778049251000,-557.886,0.00042512,30]
[421707742,1778049251000,-1169.0,0.00042512,90]
[421707691,1778049251000,-594.0,0.00042466,2]
[421707716,1778049251000,-500.0,0.000425,45]
[421707718,1778049251000,-500.0,0.000425,45]
[421707722,1778049251000,-500.0,0.000425,45]
[421707713,1778049251000,-500.0,0.00042498,25]
[421707694,1778049251000,-458.0,0.00042466,2]
[421707689,1778049251000,-650.0,0.00042466,2]
[421707693,1778049251000,-600.0,0.00042466,2]
[421707692,1778049251000,-600.0,0.00042466,2]
[421707697,1778049251000,-338.0,0.00042466,2]
[421707707,1778049251000,-500.0,0.00042487,120]
[421707696,1778049251000,-350.0,0.00042466,2]
[421707717,1778049251000,-500.0,0.000425,45]
[421707699,1778049251000,-310.0,0.00042466,97]
[421707706,1778049251000,-500.0,0.00042487,120]
[421707701,1778049251000,-5559.0,0.00042483,7]
[421707700,1778049251000,-168.0,0.0004247,120]
[421707698,1778049251000,-1560.0,0.00042466,120]
[421707703,1778049251000,-280.3145579,0.00042486,2]
[421707702,1778049251000,-4427.0,0.00042483,7]
[421707704,1778049251000,-500.0,0.00042487,120]
[421707705,1778049251000,-500.0,0.00042487,120]
[421707708,1778049251000,-500.0,0.00042487,120]
[421707712,1778049251000,-372.43341132,0.00042487,120]
[421707714,1778049251000,-500.0,0.000425,45]
[421707711,1778049251000,-500.0,0.00042487,120]
[421707710,1778049251000,-500.0,0.00042487,120]
[421707709,1778049251000,-500.0,0.00042487,120]
[421707715,1778049251000,-500.0,0.000425,45]
[421707777,1778049252000,-216.24548883,0.00042568,120]
[421707776,1778049252000,-1482.73098485,0.00042566,8]
[421707788,1778049252000,-164.23,0.00042583,2]
[421707779,1778049252000,-161.0,0.0004257,120]
[421707781,1778049252000,-300.0,0.0004257,3]
[421707768,1778049252000,-41125.57,0.00042546,120]
[421707780,1778049252000,-300.0,0.0004257,3]
[421707787,1778049252000,-164.23,0.00042583,2]
[421707783,1778049252000,-205.48759847,0.00042579,30]
[421707770,1778049252000,-161.0,0.0004255,120]
[421707785,1778049252000,-164.23,0.00042583,2]
[421707782,1778049252000,-481.75674179,0.0004257,3]
[421707784,1778049252000,-164.23,0.00042583,2]
[421707795,1778049252000,-164.23,0.00042585,2]
[421707778,1778049252000,-500.0,0.00042569,3]
[421707789,1778049252000,-164.23,0.00042583,2]
[421707791,1778049252000,-203.5328956,0.00042583,2]
[421707792,1778049252000,-203.5328956,0.00042583,2]
[421707793,1778049252000,-164.23,0.00042585,2]
[421707790,1778049252000,-203.53289562,0.00042583,2]
[421707794,1778049252000,-164.23,0.00042585,2]
[421707800,1778049252000,-164.27,0.00042587,2]
[421707797,1778049252000,-164.23,0.00042585,2]
[421707796,1778049252000,-164.23,0.00042585,2]
[421707799,1778049252000,-164.23,0.00042585,2]
[421707798,1778049252000,-164.23,0.00042585,2]
[421707775,1778049252000,-730.35631466,0.00042557,60]
[421707786,1778049252000,-164.23,0.00042583,2]
[421707769,1778049252000,-738.17,0.00042546,120]
[421707751,1778049252000,-4200.0,0.00042512,120]
[421707774,1778049252000,-836.0,0.00042557,60]
[421707746,1778049252000,-1169.0,0.00042512,90]
[421707749,1778049252000,-4200.0,0.00042512,120]
[421707750,1778049252000,-4200.0,0.00042512,120]
[421707747,1778049252000,-1648.0,0.00042512,90]
[421707745,1778049252000,-1169.0,0.00042512,90]
[421707744,1778049252000,-1169.0,0.00042512,90]
[421707743,1778049252000,-1169.0,0.00042512,90]
[421707748,1778049252000,-4200.0,0.00042512,120]
[421707752,1778049252000,-4200.0,0.00042512,120]
[421707762,1778049252000,-152.92,0.00042526,120]
[421707761,1778049252000,-187.5241289,0.00042522,2]
[421707760,1778049252000,-363.45,0.00042521,120]
[421707771,1778049252000,-500.0,0.00042553,79]
[421707754,1778049252000,-4200.0,0.00042512,120]
[421707757,1778049252000,-4200.0,0.00042512,120]
[421707759,1778049252000,-250.0,0.00042521,120]
[421707753,1778049252000,-4200.0,0.00042512,120]
[421707758,1778049252000,-250.0,0.00042521,120]
[421707755,1778049252000,-4200.0,0.00042512,120]
[421707765,1778049252000,-5934.68,0.00042546,120]
[421707773,1778049252000,-500.0,0.00042555,48]
[421707766,1778049252000,-679.31,0.00042546,120]
[421707772,1778049252000,-500.0,0.00042555,90]
[421707767,1778049252000,-3960.39,0.00042546,120]
[421707764,1778049252000,-350.0,0.00042529,5]
[421707763,1778049252000,-490.12,0.00042527,2]
[421707756,1778049252000,-4200.0,0.00042512,120]
[421707813,1778049252000,-150.0,0.000426,56]
[421707856,1778049252000,-278.092369,0.00042604,120]
[421707808,1778049252000,-418.0,0.00042595,2]
[421707832,1778049252000,-836.0,0.00042604,60]
[421707836,1778049252000,-836.0,0.00042604,60]
[421707831,1778049252000,-836.0,0.00042604,60]
[421707834,1778049252000,-836.0,0.00042604,60]
[421707839,1778049252000,-836.0,0.00042604,60]
[421707841,1778049252000,-836.0,0.00042604,60]
[421707840,1778049252000,-836.0,0.00042604,60]
[421707842,1778049252000,-836.0,0.00042604,60]
[421707844,1778049252000,-836.0,0.00042604,60]
[421707845,1778049252000,-836.0,0.00042604,60]
[421707843,1778049252000,-836.0,0.00042604,60]
[421707847,1778049252000,-151.0,0.00042604,120]
[421707848,1778049252000,-151.0,0.00042604,120]
[421707849,1778049252000,-151.0,0.00042604,120]
[421707851,1778049252000,-278.092369,0.00042604,120]
[421707862,1778049252000,-278.092369,0.00042604,120]
[421707861,1778049252000,-278.092369,0.00042604,120]
[421707852,1778049252000,-278.092369,0.00042604,120]
[421707854,1778049252000,-278.092369,0.00042604,120]
[421707850,1778049252000,-159.663309,0.00042604,120]
[421707858,1778049252000,-278.092369,0.00042604,120]
[421707859,1778049252000,-278.092369,0.00042604,120]
[421707860,1778049252000,-278.092369,0.00042604,120]
[421707857,1778049252000,-278.092369,0.00042604,120]
[421707855,1778049252000,-278.092369,0.00042604,120]
[421707802,1778049252000,-164.23,0.00042587,2]
[421707853,1778049252000,-278.092369,0.00042604,120]
[421707833,1778049252000,-836.0,0.00042604,60]
[421707837,1778049252000,-836.0,0.00042604,60]
[421707846,1778049252000,-151.0,0.00042604,120]
[421707830,1778049252000,-836.0,0.00042604,60]
[421707812,1778049252000,-500.0,0.00042599,56]
[421707835,1778049252000,-836.0,0.00042604,60]
[421707807,1778049252000,-152.0,0.00042595,19]
[421707806,1778049252000,-164.23,0.00042587,2]
[421707804,1778049252000,-164.23,0.00042587,2]
[421707801,1778049252000,-164.23,0.00042587,2]
[421707809,1778049252000,-500.0,0.00042599,15]
[421707811,1778049252000,-500.0,0.00042599,18]
[421707805,1778049252000,-164.23,0.00042587,2]
[421707810,1778049252000,-500.0,0.00042599,10]
[421707814,1778049252000,-150.0,0.000426,18]
[421707817,1778049252000,-160.0,0.000426,81]
[421707818,1778049252000,-200.0,0.000426,10]
[421707816,1778049252000,-160.0,0.000426,81]
[421707803,1778049252000,-164.23,0.00042587,2]
[421707819,1778049252000,-193.155,0.000426,46]
[421707823,1778049252000,-151.0,0.00042601,120]
[421707838,1778049252000,-836.0,0.00042604,60]
[421707828,1778049252000,-836.0,0.00042604,60]
[421707829,1778049252000,-836.0,0.00042604,60]
[421707825,1778049252000,-104080.34183508,0.00042603,7]
[421707822,1778049252000,-1000.0,0.000426,30]
[421707827,1778049252000,-836.0,0.00042604,60]
[421707824,1778049252000,-151.0,0.00042601,120]
[421707815,1778049252000,-160.0,0.000426,81]
[421707821,1778049252000,-200.0,0.000426,23]
[421707820,1778049252000,-307.0,0.000426,30]
[421707826,1778049252000,-447.0,0.00042604,120]
[421707905,1778049253000,-180.104399,0.00042604,120]
[421707901,1778049253000,-285.992992,0.00042604,120]
[421707903,1778049253000,-180.104399,0.00042604,120]
[421707891,1778049253000,-151.0,0.00042604,120]
[421707910,1778049253000,-151.0,0.00042604,120]
[421707897,1778049253000,-151.0,0.00042604,120]
[421707899,1778049253000,-151.0,0.00042604,120]
[421707895,1778049253000,-221.589595,0.00042604,120]
[421707893,1778049253000,-151.0,0.00042604,120]
[421707902,1778049253000,-180.104399,0.00042604,120]
[421707894,1778049253000,-151.0,0.00042604,120]
[421707900,1778049253000,-151.0,0.00042604,120]
[421707904,1778049253000,-151.0,0.00042604,120]
[421707914,1778049253000,-180.104399,0.00042604,120]
[421707907,1778049253000,-151.0,0.00042604,120]
[421707909,1778049253000,-180.104399,0.00042604,120]
[421707908,1778049253000,-180.104399,0.00042604,120]
[421707911,1778049253000,-180.104399,0.00042604,120]
[421707913,1778049253000,-151.0,0.00042604,120]
[421707915,1778049253000,-180.104399,0.00042604,120]
[421707916,1778049253000,-180.104399,0.00042604,120]
[421707912,1778049253000,-151.0,0.00042604,120]
[421707922,1778049253000,-500.0,0.00042616,45]
[421707919,1778049253000,-180.104397,0.00042604,120]
[421707918,1778049253000,-180.104399,0.00042604,120]
[421707887,1778049253000,-151.0,0.00042604,120]
[421707906,1778049253000,-151.0,0.00042604,120]
[421707889,1778049253000,-151.0,0.00042604,120]
[421707867,1778049253000,-151.0,0.00042604,30]
[421707890,1778049253000,-151.0,0.00042604,120]
[421707920,1778049253000,-500.0,0.00042613,28]
[421707873,1778049253000,-151.0,0.00042604,30]
[421707865,1778049253000,-278.092369,0.00042604,120]
[421707871,1778049253000,-151.0,0.00042604,30]
[421707866,1778049253000,-278.092364,0.00042604,120]
[421707868,1778049253000,-151.0,0.00042604,30]
[421707870,1778049253000,-151.0,0.00042604,30]
[421707864,1778049253000,-278.092369,0.00042604,120]
[421707863,1778049253000,-278.092369,0.00042604,120]
[421707872,1778049253000,-151.0,0.00042604,30]
[421707874,1778049253000,-151.0,0.00042604,120]
[421707869,1778049253000,-151.0,0.00042604,30]
[421707876,1778049253000,-277.281901,0.00042604,120]
[421707875,1778049253000,-151.0,0.00042604,30]
[421707886,1778049253000,-151.0,0.00042604,120]
[421707880,1778049253000,-151.0,0.00042604,30]
[421707879,1778049253000,-151.0,0.00042604,30]
[421707878,1778049253000,-151.0,0.00042604,30]
[421707877,1778049253000,-151.0,0.00042604,30]
[421707881,1778049253000,-220.59085,0.00042604,30]
[421707883,1778049253000,-151.0,0.00042604,120]
[421707882,1778049253000,-151.0,0.00042604,120]
[421707885,1778049253000,-151.0,0.00042604,120]
[421707884,1778049253000,-151.0,0.00042604,120]
[421707888,1778049253000,-151.0,0.00042604,120]
[421707898,1778049253000,-151.0,0.00042604,120]
[421707896,1778049253000,-151.0,0.00042604,120]
[421707892,1778049253000,-151.0,0.00042604,120]
[421707917,1778049253000,-180.104399,0.00042604,120]
[421707981,1778049253000,-500.0,0.00042654,2]
[421707924,1778049253000,-151.0,0.00042632,120]
[421707954,1778049253000,-150.0,0.00042636,2]
[421707956,1778049253000,-150.0,0.00042636,2]
[421707955,1778049253000,-4141.41609115,0.00042636,2]
[421707959,1778049253000,-966.0,0.00042647,120]
[421707957,1778049253000,-8202.4011982,0.00042636,2]
[421707958,1778049253000,-500.0,0.00042645,81]
[421707972,1778049253000,-1071.0,0.00042647,120]
[421707962,1778049253000,-966.0,0.00042647,120]
[421707963,1778049253000,-966.0,0.00042647,120]
[421707961,1778049253000,-966.0,0.00042647,120]
[421707965,1778049253000,-966.0,0.00042647,120]
[421707964,1778049253000,-966.0,0.00042647,120]
[421707952,1778049253000,-150.0,0.00042636,2]
[421707966,1778049253000,-966.0,0.00042647,120]
[421707971,1778049253000,-1071.0,0.00042647,120]
[421707969,1778049253000,-1071.0,0.00042647,120]
[421707967,1778049253000,-966.0,0.00042647,120]
[421707970,1778049253000,-1071.0,0.00042647,120]
[421707974,1778049253000,-1071.0,0.00042647,120]
[421707973,1778049253000,-1071.0,0.00042647,120]
[421707978,1778049253000,-608.0,0.00042647,120]
[421707979,1778049253000,-500.0,0.00042648,4]
[421707976,1778049253000,-1071.0,0.00042647,120]
[421707975,1778049253000,-1071.0,0.00042647,120]
[421707977,1778049253000,-1071.0,0.00042647,120]
[421707982,1778049253000,-1000.0,0.00042655,2]
[421707968,1778049253000,-970.931,0.00042647,120]
[421707949,1778049253000,-263.0,0.00042632,120]
[421707980,1778049253000,-150.0,0.00042654,2]
[421707951,1778049253000,-1100.0,0.00042632,120]
[421707960,1778049253000,-966.0,0.00042647,120]
[421707934,1778049253000,-707.2413,0.00042632,120]
[421707935,1778049253000,-707.2413,0.00042632,120]
[421707930,1778049253000,-151.0,0.00042632,120]
[421707927,1778049253000,-151.0,0.00042632,120]
[421707926,1778049253000,-217.760596,0.00042632,120]
[421707923,1778049253000,-152.92,0.00042626,120]
[421707929,1778049253000,-151.0,0.00042632,120]
[421707931,1778049253000,-151.0,0.00042632,120]
[421707933,1778049253000,-151.0,0.00042632,120]
[421707925,1778049253000,-151.0,0.00042632,120]
[421707928,1778049253000,-151.0,0.00042632,120]
[421707932,1778049253000,-151.0,0.00042632,120]
[421707936,1778049253000,-707.2413,0.00042632,120]
[421707921,1778049253000,-500.0,0.00042615,80]
[421707940,1778049253000,-707.2413,0.00042632,120]
[421707937,1778049253000,-707.2413,0.00042632,120]
[421707950,1778049253000,-342.0,0.00042632,120]
[421707946,1778049253000,-152.845418,0.00042632,120]
[421707948,1778049253000,-152.0,0.00042632,120]
[421707938,1778049253000,-707.2413,0.00042632,120]
[421707939,1778049253000,-707.2413,0.00042632,120]
[421707941,1778049253000,-707.2413,0.00042632,120]
[421707943,1778049253000,-707.2413,0.00042632,120]
[421707947,1778049253000,-150.0,0.00042632,2]
[421707942,1778049253000,-707.2413,0.00042632,120]
[421707944,1778049253000,-707.2413,0.00042632,120]
[421707945,1778049253000,-707.241298,0.00042632,120]
[421707953,1778049253000,-1281.96345647,0.00042636,2]
[421708021,1778049254000,-586.1,0.00042665,120]
[421708016,1778049254000,-586.1,0.00042665,120]
[421708014,1778049254000,-586.1,0.00042665,120]
[421708010,1778049254000,-586.1,0.00042665,120]
[421708012,1778049254000,-586.1,0.00042665,120]
[421708013,1778049254000,-586.1,0.00042665,120]
[421708017,1778049254000,-586.1,0.00042665,120]
[421708015,1778049254000,-586.1,0.00042665,120]
[421708019,1778049254000,-586.1,0.00042665,120]
[421708029,1778049254000,-2852.96,0.00042665,120]
[421708026,1778049254000,-2852.96,0.00042665,120]
[421708022,1778049254000,-586.1,0.00042665,120]
[421708025,1778049254000,-2852.96,0.00042665,120]
[421708020,1778049254000,-586.1,0.00042665,120]
[421708023,1778049254000,-586.1,0.00042665,120]
[421708007,1778049254000,-2084.1,0.00042665,120]
[421708027,1778049254000,-2852.96,0.00042665,120]
[421708024,1778049254000,-586.25191167,0.00042665,120]
[421708028,1778049254000,-2852.96,0.00042665,120]
[421708031,1778049254000,-2852.96,0.00042665,120]